[Event "NJSK 2018 Meisjes AB"]
[Site "Assen, Netherlands"]
[Date "2018.05.05"]
[Round "7.6"]
[White "Tiggelman, Laura"]
[Black "De Boer, Marit"]
[Result "1-0"]
[TimeControl "40/90m+30m+30sec/move"]
[WhiteElo "1536"]
[BlackElo "1446"]

1. e4 {[%clk 01:30:58]} {[%emt 00:00:04]} c6 {[%clk 01:30:54]} {[%emt
00:00:33]} 2. d4 {[%clk 01:31:20]} {[%emt 00:00:26]} d5 {[%clk 01:31:18]}
{[%emt 00:00:10]} 3. e5 {[%clk 01:31:42]} {[%emt 00:00:11]} Bf5 {[%clk
01:31:39]} {[%emt 00:00:14]} 4. Nc3 {[%clk 01:32:01]} {[%emt 00:00:15]} e6
{[%clk 01:31:28]} {[%emt 00:00:50]} 5. g4 {[%clk 01:32:18]} {[%emt 00:00:15]}
Bg6 {[%clk 01:31:47]} {[%emt 00:00:13]} 6. Nge2 {[%clk 01:32:38]} {[%emt
00:00:18]} Nd7 {[%clk 01:30:47]} {[%emt 00:01:39]} 7. h4 {[%clk 01:32:43]}
{[%emt 00:00:26]} f6 {[%clk 01:27:30]} {[%emt 00:03:10]} 8. h5 {[%clk
01:31:06]} {[%emt 00:01:09]} Bf7 {[%clk 01:27:21]} {[%emt 00:00:40]} 9. f4
{[%clk 01:28:20]} {[%emt 00:03:18]} Be7 {[%clk 01:22:12]} {[%emt 00:05:36]} 10.
Ng3 {[%clk 01:24:13]} {[%emt 00:04:36]} a6 {[%clk 01:16:41]} {[%emt 00:06:02]}
11. Qe2 {[%clk 01:12:07]} {[%emt 00:12:36]} fxe5 {[%clk 01:11:27]} {[%emt
00:05:44]} 12. dxe5 {[%clk 01:08:42]} {[%emt 00:03:55]} Qc7 {[%clk 01:08:51]}
{[%emt 00:03:07]} 13. Be3 {[%clk 00:59:38]} {[%emt 00:09:35]} c5 {[%clk
01:02:41]} {[%emt 00:06:38]} 14. Bf2 {[%clk 00:58:08]} {[%emt 00:02:01]} Bd8
{[%clk 00:54:26]} {[%emt 00:08:44]} 15. O-O-O {[%clk 00:32:34]} {[%emt
00:26:05]} Ne7 {[%clk 00:49:51]} {[%emt 00:05:06]} 16. Qd2 {[%clk 00:19:49]}
{[%emt 00:13:12]} Qc6 {[%clk 00:41:40]} {[%emt 00:08:42]} 17. Bg2 {[%clk
00:18:15]} {[%emt 00:02:05]} Ba5 {[%clk 00:39:20]} {[%emt 00:02:50]} 18. Qd3
{[%clk 00:17:08]} {[%emt 00:01:37]} b5 {[%clk 00:33:29]} {[%emt 00:06:23]} 19.
g5 {[%clk 00:10:13]} {[%emt 00:07:24]} O-O-O {[%clk 00:28:43]} {[%emt
00:05:15]} 20. Nce2 {[%clk 00:07:13]} {[%emt 00:03:31]} Qc7 {[%clk 00:26:28]}
{[%emt 00:02:44]} 21. Be1 {[%clk 00:06:27]} {[%emt 00:01:16]} Bb6 {[%clk
00:25:38]} {[%emt 00:01:20]} 22. Qf3 {[%clk 00:03:15]} {[%emt 00:03:41]} b4
{[%clk 00:23:57]} {[%emt 00:02:13]} 23. Rd3 {[%clk 00:02:42]} {[%emt 00:01:02]}
a5 {[%clk 00:23:09]} {[%emt 00:01:19]} 24. a3 {[%clk 00:02:43]} {[%emt
00:00:30]} c4 {[%clk 00:23:07]} {[%emt 00:00:30]} 25. Rd1 {[%clk 00:03:08]}
{[%emt 00:00:05]} Bc5 {[%clk 00:20:23]} {[%emt 00:03:16]} 26. axb4 {[%clk
00:02:01]} {[%emt 00:01:35]} axb4 {[%clk 00:20:36]} {[%emt 00:00:17]} 27. Nd4
{[%clk 00:02:16]} {[%emt 00:00:15]} Qb6 {[%clk 00:19:20]} {[%emt 00:01:46]} 28.
Bf2 {[%clk 00:02:31]} {[%emt 00:00:16]} Kc7 {[%clk 00:18:01]} {[%emt 00:01:50]}
29. Rhf1 {[%clk 00:01:46]} {[%emt 00:01:14]} Rb8 {[%clk 00:16:57]} {[%emt
00:01:34]} 30. Nde2 {[%clk 00:01:54]} {[%emt 00:00:22]} Rb7 {[%clk 00:13:47]}
{[%emt 00:03:40]} 31. Bxc5 {[%clk 00:02:01]} {[%emt 00:00:23]} Nxc5 {[%clk
00:14:06]} {[%emt 00:00:11]} 32. Kd2 {[%clk 00:01:54]} {[%emt 00:00:38]} Ra8
{[%clk 00:14:06]} {[%emt 00:00:30]} 33. Ke1 {[%clk 00:02:15]} {[%emt 00:00:13]}
Ra2 {[%clk 00:13:41]} {[%emt 00:00:51]} 34. Rb1 {[%clk 00:02:29]} {[%emt
00:00:17]} Rba7 {[%clk 00:12:58]} {[%emt 00:01:13]} 35. f5 {[%clk 00:00:38]}
{[%emt 00:02:20]} exf5 {[%clk 00:09:21]} {[%emt 00:04:07]} 36. Nxf5 {[%clk
00:01:03]} {[%emt 00:00:05]} Nxf5 {[%clk 00:09:00]} {[%emt 00:00:51]} 37. Qxf5
{[%clk 00:01:30]} {[%emt 00:00:03]} Bxh5 {[%clk 00:08:09]} {[%emt 00:01:21]} 38.
Qxh7 {[%clk 00:01:41]} {[%emt 00:00:20]} Qg6 {[%clk 00:06:28]} {[%emt
00:02:11]} 39. Qxg6 {[%clk 00:02:08]} {[%emt 00:00:03]} Bxg6 {[%clk 00:06:51]}
{[%emt 00:00:07]} 40. Nd4 {[%clk 00:02:21]} {[%emt 00:00:18]} Kd7 {[%clk
00:03:58]} {[%emt 00:03:21]} 41. Bh3+ {[%clk 00:02:33]} {[%emt 00:00:17]} Ke8
{[%clk 00:03:50]} {[%emt 00:00:38]} 42. Bf5 {[%clk 00:02:50]} {[%emt 00:00:14]}
Bh5 {[%clk 00:03:09]} {[%emt 00:01:12]} 43. Kd2 {[%clk 00:26:51]} {[%emt
00:06:30]} g6 {[%clk 00:31:42]} {[%emt 00:01:56]} 44. Bh3 {[%clk 00:23:45]}
{[%emt 00:03:35]} Ne4+ {[%clk 00:30:50]} {[%emt 00:01:23]} 45. Ke3 {[%clk
00:23:27]} {[%emt 00:00:50]} Nxg5 {[%clk 00:25:27]} {[%emt 00:05:53]} 46. Bg2
{[%clk 00:22:38]} {[%emt 00:01:18]} Rd7 {[%clk 00:22:30]} {[%emt 00:03:25]} 47.
Kf4 {[%clk 00:19:23]} {[%emt 00:03:46]} Nh7 {[%clk 00:21:46]} {[%emt 00:01:15]}
48. e6 {[%clk 00:16:50]} {[%emt 00:03:00]} Rd6 {[%clk 00:20:45]} {[%emt
00:01:34]} 49. Ke5 {[%clk 00:16:50]} {[%emt 00:00:30]} Raa6 {[%clk 00:19:42]}
{[%emt 00:01:33]} 50. Ra1 {[%clk 00:16:53]} {[%emt 00:00:27]} Nf8 {[%clk
00:15:02]} {[%emt 00:05:10]} 51. Rxa6 {[%clk 00:16:23]} {[%emt 00:01:01]} Rxa6
{[%clk 00:15:23]} {[%emt 00:00:10]} 52. Bxd5 {[%clk 00:16:46]} {[%emt
00:00:06]} Ra5 {[%clk 00:12:47]} {[%emt 00:03:07]} 53. Nc6 {[%clk 00:15:11]}
{[%emt 00:02:00]} Ra2 {[%clk 00:11:34]} {[%emt 00:01:47]} 54. e7 {[%clk
00:13:08]} {[%emt 00:02:33]} Nd7+ {[%clk 00:11:36]} {[%emt 00:00:30]} 55. Kd6
{[%clk 00:13:25]} {[%emt 00:00:11]} Bg4 {[%clk 00:11:34]} {[%emt 00:00:33]} 56.
Bf7# {[%clk 00:13:40]} {[%emt 00:00:15]} 1-0